Workbook

Sheet Home

Sheet Electricity EF (hidden)
A1: Energy source for electricity generation | B1: Electricity emission factors (g CO2e per kWh)*
A2: Heavily coal-based | B2: 850
A3: Fossil-based | B3: 500
A4: Average EU | B4: 320
A5: Renewable ongoing | B5: 200
A6: Largely decarbonized | B6: 30
A7: Not applicable | B7: 0
A8: Others | B8: 160
A9: *The International Energy Agency (IEA) compiles and publishes annually-updated lists of national electricity emission factors, and we recommend cities use this as a source of information. Other available sources can be found here: https://www.carbonfootprint.com/docs/2019_06_emissions_factors_sources_for_2019_electricity.pdf

Sheet City Profile
B2: City Properties
C4: City name:
C6: Country: | H6: Region:
C8: Area (km2): | H8: Longitude:
C10: Boundaries: | D10: Administrative | H10: Latitude:
C12: Climate**: | D12: e.g. Af
B16: City Parameters
C18: Year: | F18: 2019 | G18: 2 | H18: 2020 | J18: 2021 | L18: 2022
C21: Population (k): | O21: *White cells: Optional
C23: GDP (million US$): | O23: *Yellow cells: Mandatory
C25: Estimated population growth rate (%): | O25: **As per the Köppen climate classification
B28: Heavy Goods Vehicle (HGV, with a gross vehicle weight of 3.5 tonnes or more)
C30: Number of registered vehicles (k):
C32: Annual growth rate of registered vehicles (%):
E33: *
C35: Total urban freight (million tonnes) - Within:
J37: 3 | L37: 15
C38: Total urban freight (million tonnes) - From:
C41: Total urban freight (million tonnes) -To:
C44: Total urban freight (million tonnes) -Through:
B47: Light Goods Vehicle (LGV, with a GVW up to and including 3.5 tonnes)
C49: Number of registered vehicles (k):
C51: Annual growth rate of registered vehicles (%):
C54: Total urban freight (million tonnes) - Within:
C57: Total urban freight (million tonnes) -From:
C60: Total urban freight (million tonnes) -To:
C63: Total urban freight (million tonnes) -Through:
B66: Total emission reduction target
C68: Air transport (%):
C70: Rail transport (%):
C72: Road transport (%):
C74: Inland waterways transport (%):
B78: Air Quality
B79: Air Quality Index (AQI)
C81: Index level: | F81: 100
C83: Risk: | F83: Moderate
C85: Cautionary statement: | F85: Unusually sensitive people should consider reducing prolonged or heavy extension outdoors.
F89: =F18 -> 2019 | G89: =G18 -> 2 | H89: 2020 | I89: 0 | J89: 2021 | K89: 0 | L89: 2022
C90: PM2.5 concentration range [ug/m3]:
C93: PM10 concentration range [ug/m3]:
C96: NO2 concentration range [ug/m3]:
C99: Ozone concentration Rrange [ug/m3]:
C102: Number of days exceeding AQI standards (days/year):
B105: Fine particulate matter (PM2.5)
C107: Minimum daily average concentration [ug/m3]:
C110: Maximum daily average concentration [ug/m3]:
C113: Annual average concentration [ug/m3]:
B116: Particulate matter (PM10)
C118: Minimum daily average concentration [ug/m3]:
C121: Maximum daily average concentration [ug/m3]:
C124: Annual average concentration [ug/m3]:
B127: Carbon monoxide (CO)
C129: Minimum daily average concentration [ug/m3]:
C132: Maximum daily average concentration [ug/m3]:
C135: Annual average concentration [ug/m3]:
B138: Nitrogen dioxide (NO2)
C140: Minimum daily average concentration [ug/m3]:
C143: Maximum daily average concentration [ug/m3]:
C146: Annual average concentration [ug/m3]:
B149: Sulphur dioxide (SO2)
C151: Minimum daily average concentration [ug/m3]:
C154: Maximum daily average concentration [ug/m3]:
C157: Annual average concentration [ug/m3]:
B160: Ozone (O3)
C162: Minimum daily average concentration [ug/m3]:
C165: Maximum daily average concentration [ug/m3]:
C168: Annual average concentration [ug/m3]:

Sheet Road (hidden)
D3: Road Transport Input Data
E8: Year: | N8: 2019 | AC8: Type of trip flow: | AI8: Not applicable
E11: Gross vehicle weight (t): | N11: Rigid Truck (7.5 t-12t) | AC11: Type of goods: | AI11: Not applicable
E14: Load factor (%): | N14: 60 | AI14: Not applicable
E17: Total distance (million km): | N17: 0 | AC17: No. of vehicles (k): | AI17: 0
E20: Million tonne.km: | N20: 0 | AC20: Age of vehicles: | AI20: Not applicable
E23: Fuel type: | N23: Diesel | AC23: Fuel unit: | AI23: litre
E26: Fuel consumption (l/100 km)*: | N26: 0 | AC26: Electricity EF2*, 3*: | AI26: Not applicable
E29: Emissions (Million tonnes)
L32: CO2: | Q32: 0 | AB32: CO2e: | AG32: 0
D39: *Fuel consumption (liters/100km), (gallons/100km), (kg/100km) or (kWh/100km), depending on the fuel type and its respective unit.
D41: 2*Electricity emission factors (g CO2e per kWh), when users choose electricity as the energy type.
D43: 3*The International Energy Agency (IEA) compiles and publishes annually-updated lists of national electricity emission factors, and we recommend cities use this as a source of information. Other available sources can be found at https://www.carbonfootprint.com/docs/2019_06_emissions_factors_sources_for_2019_electricity.pdf.

Sheet Upgrades log (hidden)
A1: 2020-03-19 | B1: Message when someone selects a vehicle (motorcycle, rickshaw, etc.) and the ef is not known. Spanish version does not include it.

Sheet City Parameters (hidden)
A1: City | B1: Region | D1: Climate | F1: Boundaries
A2: Buenos aires | B2: Africa | D2: Tropical | F2: Administrative
A3: Rosario | B3: East Asia | D3: Dry | F3: Geographic
A4: Santa Fe | B4: Europe | D4: Moderate
A5: Bogotá | B5: Latin America & Caribbean | D5: Continental
A6: Manizales | B6: North Africa, Middle East and West Asia | D6: Polar
A7: Cordoba | B7: North America
A8: Metropolitan Area of the Aburrá Valley (AMVA) | B8: Oceania
A9: Kochi | B9: South Asia
A10: Panaji | B10: Southeast Asia
A11: Shimla

Sheet Common parameters (hidden)
A1: Year | B1: Type of trip flow | D1: Boolean | F1: Off-hour deliveries | G1: Reduction | H1: fuel units
A2: ='City Profile'!F$18 -> 2019 | B2: Not applicable | D2: Yes | F2: 7PM - 6AM | G2: 56 | H2: kg
A3: ='City Profile'!H$18 -> 2020 | B3: Within | D3: No | F3: 6PM - 10PM | G3: 13 | H3: litre
A4: ='City Profile'!J$18 -> 2021 | B4: From | F4: 6AM - 7PM | G4: 0 | H4: gallon
A5: ='City Profile'!L$18 -> 2022 | B5: To | H5: kWh
B6: Through

Sheet City Graphs data (hidden)
A1: year | C1: ='City Profile'!$F$18 -> 2019 | D1: ='City Profile'!$H$18 -> 2020 | E1: ='City Profile'!$J$18 -> 2021 | F1: ='City Profile'!$L$18 -> 2022
A2: Within | B2: HGV
B3: LGV
B4: Total | C4: =C2+C3 -> 0 | D4: =D2+D3 -> 0 | E4: 0 | F4: 0
A5: From | B5: HGV
B6: LGV
B7: Total | C7: =C5+C6 -> 0 | D7: =D5+D6 -> 0 | E7: =E5+E6 -> 0 | F7: =F5+F6 -> 0
A8: To | B8: HGV
B9: LGV
B10: Total | C10: =C8+C9 -> 0 | D10: =D8+D9 -> 0 | E10: =E8+E9 -> 0 | F10: =F8+F9 -> 0
A11: Through | B11: HGV
B12: LGV
B13: Total | C13: =C11+C12 -> 0 | D13: =D11+D12 -> 0 | E13: =E11+E12 -> 0 | F13: =F11+F12 -> 0

Sheet Rail Parameters (hidden)
A1: Type of fuels | B1: Type of goods | C1: Age of Locomotives | D1: Load Characteristics | E1: Payload capacity Wagon (t) | F1: Emission intensity (g CO2e/tkm) (Ambient, Diesel) | G1: Emission intensity (g CO2e/tkm) (Refrigerated, Diesel) | H1: uplift values (Asia) | I1: Emission intensity (g CO2e/tkm) (Ambient, Petrol[gasoline]) | J1: Emission intensity (g CO2e/tkm) (Refrigerated, Petrol[gasoline]) | K1: uplift values %(Asia) | L1: Emission intensity (g CO2e/tkm) (Ambient, LPG) | M1: Emission intensity (g CO2e/tkm) (Refrigerated, LPG) | N1: uplift values %(Asia) | O1: Emission intensity (g CO2e/tkm) (Ambient, CNG) | P1: Emission intensity (g CO2e/tkm) (Refrigerated, CNG) | Q1: uplift values %(Asia) | R1: Emission intensity (g CO2e/tkm) (Ambient, LNG) | S1: Emission intensity (g CO2e/tkm) (Refrigerated, LNG) | T1: uplift values %(Asia) | U1: kWh/t-km (Electricity) | V1: kWh/t-km (Electricity) | W1: uplift values % | X1: Load factor (%)
A2: Diesel (litres) | B2: Volume goods | C2: From 0 to 5 | D2: Average/mixed | E2: 61 | F2: 28 | G2: 0 | H2: 0 | U2: 0.0322 | W2: 0 | X2: 60
A3: Electricity (kWh) | B3: Average goods | C3: From 5 to 10 | D3: Container | E3: 65 | F3: 25 | U3: 0.0294 | X3: 60
A4: Diesel (gallons) | B4: Bulk goods | C4: From 10 to 15 | D4: Cars | E4: 21 | F4: 60 | G4: 0 | H4: 0 | U4: 0.0693 | W4: 0 | X4: 50
B5: Not applicable | C5: Over 15 | D5: Chemicals | E5: 55 | F5: 24 | G5: 0 | H5: 0 | U5: 0.0277 | W5: 0 | X5: 85
C6: Not applicable | D6: Coal&Steel | E6: 65 | F6: 19 | G6: 0 | H6: 0 | U6: 0.0215 | W6: 0 | X6: 100
D7: Building materials | E7: 54 | F7: 23 | G7: 0 | H7: 0 | U7: 0.0268 | W7: 0 | X7: 100
D8: Manufactured Products | E8: 54 | F8: 24 | G8: 0 | H8: 0 | U8: 0.0282 | W8: 0 | X8: 100
D9: Cereals | E9: 63 | F9: 18 | G9: 0 | H9: 0 | U9: 0.0212 | W9: 0 | X9: 75
D10: Truck +trailer on train | E10: 63 | F10: 130 | G10: 0 | H10: 0 | U10: 0 | W10: 0 | X10: 100
D11: Trailer only on train | E11: 63 | F11: 90 | G11: 0 | H11: 0 | U11: 0 | W11: 0 | X11: 85
D15: 61

Sheet Water Parameters (hidden)
A1: Type of fuels | B1: Cargo Type | C1: Age of vehicles | D1: Type of vessels | E1: payload | F1: Emission intensity (g CO2e/tkm) (Ambient, Diesel) | G1: Emission intensity (g CO2e/tkm) (Refrigerated, Diesel) | H1: uplift values (Asia) | I1: Emission intensity (g CO2e/tkm) (Ambient, Petrol[gasoline]) | J1: Emission intensity (g CO2e/tkm) (Refrigerated, Petrol[gasoline]) | K1: uplift values %(Asia) | L1: load factor (%)
A2: Marine Diesel (litres) | B2: Bulk | C2: From 0 to 5 | D2: Motor Vessels < 80 m [1000T] | E2: 477 | F2: 30 | G2: 0 | H2: 0 | L2: 55
B3: Containers | C3: From 5 to 10 | D3: Motor Vessels 85-110 m [1000 - 2000T] | E3: 1497 | F3: 19 | G3: 0 | H3: 0 | L3: 52
B4: Pallets | C4: From 10 to 15 | D4: Motos Vessels 135 m [2000 - 3000T] | E4: 2135 | F4: 19 | G4: 0 | H4: 0 | L4: 50
B5: Mass - limited | C5: Over 15 | D5: Coupled convoys [163 -185 m ] | E5: 2903 | F5: 17 | G5: 0 | H5: 0 | L5: 61
B6: Volume limited | C6: Not applicable | D6: Pushed convoy - push boat + 2 barges | E6: 3000 | F6: 17 | G6: 0 | H6: 0 | L6: 70
B7: Not applicable | D7: Pushed convoy - push boat + 4/5 barges | E7: 8000 | F7: 10 | G7: 0 | H7: 0 | I7: 1000 | K7: 13 | L7: 70
D8: Pushed convoy - push boat + 6 barges | E8: 10000 | F8: 7.4 | G8: 0 | H8: 0 | L8: 70
D9: Tanker vessels | E9: 4195 | F9: 21 | G9: 0 | H9: 0 | L9: 65
D10: Container vessels 110m | E10: 1410 | F10: 26 | G10: 0 | H10: 0 | L10: 75
D11: Container vessels 135 | E11: 3141 | F11: 20 | G11: 0 | H11: 0 | L11: 75
D12: Container vessels - Coupled convoys | E12: 2502 | F12: 20 | G12: 0 | H12: 0 | L12: 68

Sheet Water Transport DB (hidden)
A1: Year | B1: Vessel Type (Gross Weight) | C1: Load Factor (%) | D1: Total distance (km) | E1: Total tonne.km (million) | F1: Type of fuel | G1: Fuel efficiency | H1: CO2 | I1: CO2e | J1: City Boundaries | K1: Type of goods | L1: Refrigerated | M1: Number of vessels | N1: Age of vessels

Sheet Rail (hidden)
D3: Rail Transport Input Data
E8: Year: | N8: 2019 | AC8: Type of trip flow: | AI8: Not applicable
E11: Train type: | N11: Average | AC11: Type of goods: | AI11: Not applicable
E14: Load factor (%): | N14: 0 | AI14: Not applicable
E17: Total distance (km): | N17: 0 | AC17: No. of wagons: | AI17: 20
E20: Million tonne.km: | N20: 0 | AC20: Age of locomotives | AI20: Not applicable
E23: Type of traction (unit): | N23: Diesel (litres)
E26: Fuel consumption (l/100 km)*: | N26: 0 | AC26: Electriity EF 2*, 3*: | AI26: Not applicable
E29: Emissions (Million tonnes)
L32: CO2: | Q32: 0 | AB32: CO2e: | AG32: 0
D39: *Fuel consumption (liters/100km), (gallons/100km), (kg/100km) or (kWh/100km), depending on the fuel type and its respective unit.
D41: 2*Electricity emission factors (g CO2e per kWh), when users choose electricity as the energy type.
D43: 3*The International Energy Agency (IEA) compiles and publishes annually-updated lists of national electricity emission factors, and we recommend cities use this as a source of information. Other available sources can be found at https://www.carbonfootprint.com/docs/2019_06_emissions_factors_sources_for_2019_electricity.pdf.

Sheet Water (hidden)
D3: Inland Waterways Transport Input Data
E8: Year: | N8: 2019 | AC8: Type of trip flow: | AI8: Not applicable
E11: Vessel type (gross weight): | N11: Motor Vessels < 80 m [1000T] | AC11: Type of goods: | AI11: Not applicable
E14: Load factor (%): | N14: 55 | AI14: Not applicable
E17: Total distance (km): | N17: 0 | AC17: No. of vessels:
E20: Million tonne.km: | N20: 0 | AC20: Age of vessels: | AI20: Not applicable
E23: Fuel type (unit): | N23: Marine Diesel (litres)
E26: Fuel consumption (l/100 km)* : | N26: 0
E29: Emissions (Million tonnes)
L32: CO2: | Q32: 0 | AB32: CO2e: | AG32: 0
D39: *Fuel consumption (liters/100km), (gallons/100km), (kg/100km) or (kWh/100km), depending on the fuel type and its respective unit.

Sheet Road Transport DB (hidden)
A1: Year | B1: Type of vehicle (Gross vehicle weight) | C1: Load Factor | D1: Total distance (million km) | E1: Total tonne.km (million) | F1: Type of fuel | G1: Fuel unit | H1: Fuel efficiency | I1: CO2 | J1: CO2e | K1: City Boundaries | L1: Type of goods | M1: Refrigerated | N1: Number of vehicles | O1: Age of vehicles

Sheet Rail Graphs Data (hidden)
A1: Measurement | B1: ='City Profile'!$F$18 -> 2019 | C1: ='City Profile'!$H$18 -> 2020 | D1: ='City Profile'!$J$18 -> 2021 | E1: ='City Profile'!$L$18 -> 2022
A2: CO2e (million tonnes) | B2: 0 | C2: 0 | D2: 0 | E2: 0
A3: Million tonne-km | B3: 0 | C3: 0 | D3: 0 | E3: 0
B7: 0
B8: 0
A9: Average/mixed | B9: 0
A10: Container | B10: 0
A11: Cars | B11: 0
A12: Chemicals | B12: 0
A13: Coal&Steel | B13: 0
A14: Building materials | B14: 0
A15: Manufactured Products | B15: 0
A16: Cereals | B16: 0
A17: Truck +trailer on train | B17: 0
A18: Trailer only on train | B18: 0
A20: Diesel | B20: 0 | C20: =B20/SUM(B$20:B$21) -> 
A21: Electricity | B21: 0 | C21: =B21/SUM(B$20:B$21) -> 
B22: 1

Sheet Off-Hours Deliveries (hidden)
B2: Road Transport - Off-Hour Deliveries Impact Assessment
C5: Base year: | D5: ='City Profile'!F18 -> 2019
C6: Forecast year: | D6: 2050
C7: Vehicle type: | D7: Light good vehicle (<3.5 t)
C8: Refrigerated: | D8: No
C9: Average truck tonne-km (million): | D9: 1
C10: Road freight transport growth rate (%): | D10: =Forecast!I6 -> 3 | F10: *
C11: Off-hour periods: | D11: 6AM - 7PM | F11: **
D14: Name | F14: EF (g CO2e/t.km)
C15: Fuel used: | D15: Diesel | F15: 680.00
C16: Uplifted values (Asia, Africa): | D16: 0 | F16: %
D21: Baseline | E21: BAU scenario | F21: Target scenario
D22: =D5 -> 2019 | E22: =D6 -> 2050 | F22: =D6 -> 2050
C23: Million km: | D23: 4.00 | E23: =D23*(1+$D$10/100)^($E$22-$D$22) -> 10.00 | F23: =D23*(1+$D$10/100)^($E$22-$D$22) -> 10.00
C24: Million tonne-km: | D24: 1.87 | E24: =D24*(1+$D$10/100)^($E$22-$D$22) -> 4.68 | F24: =D24*(1+$D$10/100)^($E$22-$D$22) -> 4.68
C25: Million tonnes CO2e: | D25: 0.0013 | E25: 0.0033 | F25: 0.0033
C26: CO2e emissions reduced (%): | F26: =IF(F25=0,0,(1-F25/E25)*100) -> 0 | G26: ***
B31: *Latest estimate from the International Transport Forum (ITF) suggests that the global freight transport demand grows at 3.1 percent and 3.4 percent annually through 2030 and 2050 respectively (ITF Transport Outlook 2019). It must be noted that it can be misleading to rely on global data, and good quality in-country data should be sought whenever possible.
B32: **Source: Holguín-Veras, José & Encarnación, Trilce & Gonzalez-Calderon, Carlos & Winebrake, James & Wang, Cara & Kyle, Sofia & Herazo-Padilla, Nilson & Kalahasthi, Lokesh & Adarme, Wilson & Cantillo, Victor & Yoshizaki, Hugo & Garrido, Rodrigo. (2016). Direct impacts of off-hour deliveries on urban freight emissions. Transportation Research Part D: Transport and Environment.
B33: ***The magnitude of the emission reductions depends on the extent of the change of delivery time. A study in three major cities in the Americas indicates that OHD produces emissions that are 13 to 56 percent lower than those produced by deliveries made during regular hours in similar routes. However this might not be applicable to other cities or regions.

Sheet Fuel emissions factors (hidden)
B2: kg CO2 / kg fuel | E2: kg CO2e / kg fuel | H2: Density | I2: kg CO2 / l fuel | L2: kg CO2e / l fuel
B3: WTT CO2 | C3: TTW CO2 | D3: WTW CO2 | E3: WTT CO2e | F3: TTW CO2e | G3: WTW CO2e | I3: WTT CO2 | J3: TTW CO2 | K3: WTW CO2 | L3: WTT CO2e | M3: TTW CO2e | N3: WTW CO2e
A4: HFO | B4: =D4-C4 -> 0.27 | C4: 3.11 | D4: =1.086*C4 -> 3.38 | E4: =G4-F4 -> 0.26 | F4: 3.15 | G4: 3.41 | H4: 0.970 | I4: =B4*$H4 -> 0.26 | J4: 3.02 | K4: 3.28 | L4: 0.25 | M4: 3.06 | N4: 3.31
A5: Marine Diesel (litres) | B5: 0.68 | C5: 3.21 | D5: =1.212*C5 -> 3.89 | E5: 0.69 | F5: =1.01*C5 -> 3.24 | G5: 3.92 | H5: 0.9 | I5: 0.61 | J5: 2.89 | K5: 3.50 | L5: 0.62 | M5: 2.91 | N5: 3.53
A6: Gasoline | B6: 0.63 | C6: 3.15 | D6: =1.2*C6 -> 3.78 | E6: 0.68 | F6: =1.01*C6 -> 3.18 | G6: 3.86 | H6: 0.8 | I6: 0.50 | J6: 2.52 | K6: 2.82 | L6: 0.54 | M6: 2.55 | N6: 2.88
A7: Aviation fuel | B7: 0.59 | C7: =F7/1.02 -> 3.19 | D7: 3.78 | E7: 0.63 | F7: 3.25 | G7: 3.88 | H7: 0.745 | I7: 0.44 | J7: 2.37 | K7: 3.02 | L7: 0.47 | M7: 2.42 | N7: 3.10
A8: Diesel | B8: 0.68 | C8: =F8/1.01 -> 3.18 | D8: =G8/1.01 -> 3.86 | E8: 0.69 | F8: 3.21 | G8: 3.90 | H8: 0.832 | I8: 0.57 | J8: 2.64 | K8: 3.21 | L8: 0.57 | M8: 2.67 | N8: 3.24
A9: LPG | B9: 0.36 | C9: =F9/1.01 -> 3.07 | D9: =G9/1.01 -> 3.43 | E9: 0.36 | F9: 3.10 | G9: 3.46 | H9: 0.55 | I9: 0.20 | J9: 1.69 | K9: 1.88 | L9: 0.20 | M9: 1.70 | N9: 1.90
A10: CNG | E10: 0.39 | F10: 2.68 | G10: 3.07 | H10: 0 | I10: 0 | J10: 0 | K10: 0 | L10: 0 | M10: 0 | N10: 0
A11: LNG | E11: 0.94 | F11: 2.68 | G11: =E11+F11 -> 3.62 | H11: 0 | I11: 0 | J11: 0 | K11: 0 | L11: 0 | M11: 0 | N11: 0
A12: Biomethane | E12: 0.49 | F12: 0.00 | G12: =E12+F12 -> 0.49 | H12: 0 | I12: 0 | J12: 0 | K12: 0 | L12: 0 | M12: 0 | N12: 0
A13: Bio LNG | E13: =0.55+0.49 -> 1.04 | F13: 0.00 | G13: =E13+F13 -> 1.04 | H13: 0 | I13: 0 | J13: 0 | K13: 0 | L13: 0 | M13: 0 | N13: 0
A14: HFO1 (gallons) | I14: =I4/$D$21 -> 0.07 | J14: =J4/$D$21 -> 0.80 | K14: =K4/$D$21 -> 0.87 | L14: 0.07 | M14: 0.81 | N14: 0.88
A15: Marine Diesel (gallons) | I15: 0.16 | J15: 0.76 | K15: 0.93 | L15: 0.16 | M15: 0.77 | N15: 0.93
A16: Gasoline1 (gallons) | I16: 0.13 | J16: 0.67 | K16: 0.75 | L16: 0.14 | M16: 0.67 | N16: 0.76
A17: Diesel1 (gallons) | I17: =I8/$D$21 -> 0.15 | J17: =J8/$D$21 -> 0.70 | K17: 0.85 | L17: 0.15 | M17: 0.71 | N17: 0.86
A18: LPG 1(gallons) | I18: =I9/$D$21 -> 0.05 | J18: 0.45 | K18: 0.50 | L18: 0.05 | M18: 0.45 | N18: 0.50
C20: litres | D20: Gallon
B21: Conversion | C21: 1 | D21: 3.78
D26: EN 16258, which is in itself drawn from JEC/Concawe 2013
D27: Derived by SFC from agreed scaling between CO2 and CO2e or TTW and WTW
D28: IATA RP1678/ICAO
D29: CCWG/IMO
D30: Defra/HBEFA/NTM
D31: Defra
D32: Original EF above converted to kgC02e/gallon

Sheet Forecast (hidden)
B2: Impact assessment
C6: Base year: | E6: ='City Profile'!F18 -> 2019 | G6: Freight growth rate (%): | I6: 3 | J6: *
G9: Base year | H9: Forecast
D10: Road freight transport (CO2e million tonnes) | G10: =E6 -> 2019 | H10: 2025 | I10: 2030 | J10: 2050
G11: 0 | H11: =$G$11*(1+$I$6/100)^($H$10-$G$10) -> 0 | I11: =$G$11*(1+$I$6/100)^($I$10-$G$10) -> 0 | J11: =$G$11*(1+$I$6/100)^($J$10-$G$10) -> 0
B15: Action assessment
C18: Measure | F18: Type | H18: Description
D19: Fuel technology change | F19: Improve | H19: This includes technologies for promoting high efficiency and alternative fuels, such as biofuels, bio CNG as wel as bio LNG etc.
D20: Distance reduction | F20: Avoid | H20: This involves the reduction of vehicle kilometers travelled (VKT) of a specific type of vehicle.
D21: Increase load factor | F21: Improve | H21: Increase vehicles efficiency utilization of an specific type of vehicle
D22: Acces restriction (type vehicle) | F22: Shift | H22: Replace a percentage of a type of vehicle with smaller ones
D23: Eco-driving | F23: Improve | H23: This involves training drivers to drive in eco-friendly ways in order to save fuel and reduce emissions.
D24: Off-hour deliveries | F24: Improve | H24: Also known as “Out of hours” deliveries, this focuses on shifting freight deliveries from peak period to off hour period.
B27: * Latest estimate from the International Transport Forum (ITF) suggests that the global freight transport demand grows at 3.1 percent and 3.4 percent annually through 2030 and 2050 respectively (ITF Transport Outlook 2019).It must be noted that it can be misleading to rely on global data, and good quality in-country data should be sought whenever possible.

Sheet Results (hidden)
D4: City: | E4: ='City Profile'!D4 -> 0 | I4: CO2e (million tonnes)
D5: Country: | E5: ='City Profile'!D6 -> 0 | I5: Road | J5: ='Road Graphs data'!$B$2 -> 0
D6: Area (km2): | E6: ='City Profile'!D8 -> 0 | I6: Rail | J6: ='Rail Graphs Data'!B2 -> 0
C7: Population (k): | E7: ='City Profile'!F21 -> 0 | I7: Inland waterways | J7: ='Water Graphs data'!B2 -> 0
D8: GDP (million US$): | E8: ='City Profile'!F23 -> 0

Sheet Distance Reduction (hidden)
B2: Road Transport - Distance Reduction Impact Assessment
C5: Base year: | D5: ='City Profile'!F18 -> 2019
C6: Forecast year: | D6: 2050
C7: Vehicle type: | D7: Light good vehicle (<3.5 t)
C8: Refrigerated: | D8: No
C9: Average truck tonne-km (million): | D9: 1
C10: Road freight transport growth rate (%): | D10: =Forecast!I6 -> 3 | F10: *
C11: Distance reduction rate (%): | D11: 12
D13: Name | F13: EF (g CO2e/t.km)
C14: Fuel used: | D14: Diesel | F14: 680.00
C15: Uplifted values (Asia, Africa): | D15: 0 | E15: %
D20: Baseline | E20: BAU scenario | F20: Target scenario
D21: =D5 -> 2019 | E21: =D6 -> 2050 | F21: =D6 -> 2050
C22: Million km: | D22: 0.00 | E22: =D22*(1+$D$10/100)^($E$21-$D$21) -> 0.00 | F22: =D22*(1+$D$10/100)^($E$21-$D$21)*(1-(D11/100)) -> 0.00
C23: Million tonne-km: | D23: 0.00 | E23: =D23*(1+$D$10/100)^($E$21-$D$21) -> 0.00 | F23: =D23*(1+$D$10/100)^($E$21-$D$21)*(1-(D11/100)) -> 0.00
C24: Million tonnes CO2e: | D24: 0.0000 | E24: 0.0000 | F24: 0.0000
C25: CO2e emissions reduced (%): | F25: =IF(F24=0,0,(1-F24/E24)*100) -> 0
B29: *Latest estimate from the International Transport Forum (ITF) suggests that the global freight transport demand grows at 3.1 percent and 3.4 percent annually through 2030 and 2050 respectively (ITF Transport Outlook 2019). It must be noted that it can be misleading to rely on global data, and good quality in-country data should be sought whenever possible.

Sheet Rail Transport DB (hidden)
A1: Year | B1: Train Type | C1: Load Factor (%) | D1: Total distance (km) | E1: Million tonne.km | F1: Type of traction | G1: Fuel consumption | H1: CO2 | I1: CO2e | J1: City Boundaries | K1: Type of goods | L1: Refrigerated | M1: Number of wagons | N1: Age of locomotives

Sheet Ecodriving (hidden)
B2: Road Transport - Eco-driving Impact Assessment
C5: Base year: | D5: ='City Profile'!F18 -> 2019
C6: Forecast year: | D6: 2050
C7: Vehicle type: | D7: Light good vehicle (<3.5 t)
C8: Refrigerated: | D8: No
C9: Average truck tonne-km (million): | D9: 1
C10: Road freight transport growth rate (%): | D10: =Forecast!I6 -> 3 | F10: *
C11: Eco-driving fuel saving rate (%): | D11: 10 | F11: **
D13: Name | F13: EF (gCO2e/t.km)
C14: Fuel used: | D14: Diesel | F14: 680.00
C15: Uplift Value: | D15: 1.00 | F15: 0
C16: Uplifted values (Asia, Africa): | D16: 0 | E16: %
D21: Baseline | E21: BAU scenario | F21: Target scenario
D22: =D5 -> 2019 | E22: =D6 -> 2050 | F22: =D6 -> 2050
C23: Million km: | D23: 4.00 | E23: =D23*(1+$D$10/100)^($E$22-$D$22) -> 10.00 | F23: =D23*(1+$D$10/100)^($E$22-$D$22) -> 10.00
C24: Million tonne-km: | D24: 1.87 | E24: =D24*(1+$D$10/100)^($E$22-$D$22) -> 4.68 | F24: =D24*(1+$D$10/100)^($E$22-$D$22) -> 4.68
C25: Million tonnes CO2e: | D25: 0.0013 | E25: 0.0033 | F25: 0.0030
C26: CO2e emissions reduced (%): | F26: =IF(F25=0,0,(1-F25/E25)*100) -> 8
B31: *Latest estimate from the International Transport Forum (ITF) suggests that the global freight transport demand grows at 3.1 percent and 3.4 percent annually through 2030 and 2050 respectively (ITF Transport Outlook 2019). It must be noted that it can be misleading to rely on global data, and good quality in-country data should be sought whenever possible.
B32: **Default value is 10 percent; Source: “ITS4CV” – ITS for Commercial Vehicles. Study of the scope of Intelligent Transport Systems for reducing CO2 emissions and increasing safety of heavy goods vehicles, buses and coaches. (2016). Retrieved from http://erticonetwork.com/wp-content/uploads/2016/09/ITS4CV-Report-final-2016-09-09.pdf

Sheet Fuel Change (hidden)
B2: Road Transport - Fuel Technology Change Impact Assessment
C5: Base year: | D5: ='City Profile'!F18 -> 2019
C6: Forecast year: | D6: 2050
C7: Vehicle type: | D7: Light good vehicle (<3.5 t)
C8: Refrigerated: | D8: No
C9: Average truck tonne-km (million): | D9: 1
C10: Road freight transport growth rate (%): | D10: =Forecast!I6 -> 3 | F10: *
D13: Fuel type | F13: EF (gCO2e/t.km)*2 | G13: Energy source for electricity generation | I13: EF (gCO2e/kWh)*3
C14: Fuel technology used: | D14: Diesel | F14: 680 | G14: Others | I14: 160
C15: Fuel technology to use: | D15: Diesel | F15: 680 | G15: Average EU | I15: 320
C16: Uplifted values (Asia, Africa): | D16: 0 | E16: %
D20: Baseline | E20: BAU scenario | F20: Target scenario
D21: =D5 -> 2019 | E21: =D6 -> 2050 | F21: =D6 -> 2050
C22: Million km: | D22: 0.00 | E22: =D22*(1+$D$10/100)^($E$21-$D$21) -> 0.00 | F22: =D22*(1+$D$10/100)^($E$21-$D$21) -> 0.00
C23: Million tonne-km: | D23: 0.00 | E23: =D23*(1+$D$10/100)^($E$21-$D$21) -> 0.00 | F23: =D23*(1+$D$10/100)^($E$21-$D$21) -> 0.00
C24: Million tonnes CO2e: | D24: 0.0000 | E24: 0.0000 | F24: 0.0000
C25: CO2e emissions reduced (%): | F25: =IF(F24=0,0,(1-F24/E24)*100) -> 0
B30: *Latest estimate from the International Transport Forum (ITF) suggests that the global freight transport demand grows at 3.1 percent and 3.4 percent annually through 2030 and 2050 respectively (ITF Transport Outlook 2019). It must be noted that it can be misleading to rely on global data, and good quality in-country data should be sought whenever possible.
B31: *2 Refers to kWh/t-km value when users choose electricity as the energy type.
B32: *3 Electricity emission factors (g CO2e per kWh)* when users choose electricity as the energy type; The International Energy Agency (IEA) compiles and publishes annually-updated lists of national electricity emission factors, and we recommend cities use this as a source of information. Other available sources can be found at https://www.carbonfootprint.com/docs/2019_06_emissions_factors_sources_for_2019_electricity.pdf

Sheet Road Graphs data (hidden)
A1: Measurement | B1: ='City Profile'!$F$18 -> 2019 | C1: ='City Profile'!$H$18 -> 2020 | D1: ='City Profile'!$J$18 -> 2021 | E1: ='City Profile'!$L$18 -> 2022
A2: CO2e (million tonnes) | B2: 0 | C2: 0 | D2: 0 | E2: 0
A3: Million tonne-km | B3: 0 | C3: 0 | D3: 0 | E3: 0
B6: Number
A7: Non Motorized rickshaw/cart | B7: 0
A8: Bicycle/Cargo bike | B8: 0
A9: Motorized rickshaw / tuk tuk | B9: 0
A10: Motorcycle (2-wheeler) | B10: 0
A11: Tempo | B11: 0
A12: Light good vehicle (<3.5 t) | B12: 0
A13: Rigid Truck (3.5 t - 7.5 t)) | B13: 0
A14: Rigid Truck (7.5 t-12t) | B14: 0
A15: Rigid Truck (12t-20t) | B15: 0
A16: Rigid Truck (>20t) | B16: 0
A17: Truck and Trailer (>20t) | B17: 0
B18: 0
A20: Diesel | B20: 0 | C20: =B20/SUM(B$20:B$27) -> 
A21: CNG | B21: 0 | C21: =B21/SUM(B$20:B$27) -> 
A22: LPG | B22: 0
A23: LNG | B23: 0
A24: Gasoline | B24: 0
A25: Electricity | B25: 0
A26: Biomethane | B26: 0
A27: Bio LNG | B27: 0
B28: 0
B29: 0
B30: 0
B31: 0
B32: 0
B33: 0
B35: =SUM(B20:B25) -> 0

Sheet Road Parameters (hidden)
A1: Type of fuels | B1: Type of goods | C1: Age of vehicles | D1: Type of road vehicles | E1: EF size (tonnes) | F1: Emission intensity (g CO2e/tkm) (Ambient, Diesel) | G1: Emission intensity (g CO2e/tkm) (Refrigerated, Diesel) | H1: uplift values (Asia) | I1: Emission intensity (g CO2e/tkm) (Ambient, Petrol[gasoline]) | J1: Emission intensity (g CO2e/tkm) (Refrigerated, Petrol[gasoline]) | K1: uplift values %(Asia) | L1: Emission intensity (g CO2e/tkm) (Ambient, LPG) | M1: Emission intensity (g CO2e/tkm) (Refrigerated, LPG) | N1: uplift values %(Asia) | O1: Emission intensity (g CO2e/tkm) (Ambient, CNG) | P1: Emission intensity (g CO2e/tkm) (Refrigerated, CNG) | Q1: uplift values %(Asia) | R1: Emission intensity (g CO2e/tkm) (Ambient, LNG) | S1: Emission intensity (g CO2e/tkm) (Refrigerated, LNG) | T1: uplift values %(Asia) | U1: Emission intensity (kWh/tkm) (Ambient, electricity) | V1: Emission intensity (kWh/tkm) (Refrigerated, electricity) | W1: uplift values %(Asia)
A2: HFO (litres) | B2: Volume goods | C2: From 0 to 5 | D2: Non Motorized rickshaw/cart | E2: 0.5 | F2: 0 | G2: 0 | H2: 0
A3: MDO (litres) | B3: Average goods | C3: From 5 to 10 | D3: Bicycle/Cargo bike | E3: 0.5 | F3: 0 | G3: 0 | H3: 0
A4: Gasoline (litres) | B4: Bulk goods | C4: From 10 to 15 | D4: Motorized rickshaw / tuk tuk | E4: 0.5 | F4: 0 | G4: 0 | H4: 0
A5: Aviation fuel (litres) | B5: Not applicable | C5: Over 15 | D5: Motorcycle (2-wheeler) | E5: 0.5 | F5: 0 | G5: 0 | H5: 0
A6: Diesel (litres) | C6: Not applicable | D6: Tempo | E6: 0.75 | F6: 0 | G6: 0 | H6: 13
A7: LPG (litres) | D7: Light good vehicle (<3.5 t) | E7: 1.3 | F7: 680 | G7: 780 | H7: 13 | I7: 1000 | J7: 1150 | K7: 13 | L7: 660 | M7: 760 | N7: 13 | O7: 620 | P7: 710 | Q7: 13 | U7: 1.1 | W7: 13
A8: CNG (kg) | D8: Rigid Truck (3.5 t - 7.5 t)) | E8: 2.3 | F8: 370 | G8: 415 | H8: 22 | O8: 360 | P8: 405 | Q8: 22 | U8: 0.5 | W8: 22
A9: LNG (kg) | D9: Rigid Truck (7.5 t-12t) | E9: 5 | F9: 240 | G9: 270 | H9: 22 | O9: 220 | P9: 250 | Q9: 22 | U9: 0.4 | W9: 22
A10: HFO (gallons) | D10: Rigid Truck (12t-20t) | E10: 8.4 | F10: 150 | G10: 170 | H10: 22 | O10: 150 | P10: 170 | Q10: 22 | R10: 180 | S10: 200 | T10: 22
A11: MDO (gallons) | D11: Rigid Truck (>20t) | E11: 15.3 | F11: 120 | G11: 145 | H11: 22 | O11: 120 | P11: 145 | Q11: 22 | R11: 140 | S11: 170 | T11: 22
A12: Gasoline (gallons) | D12: Truck and Trailer (>20t) | E12: 18.4 | F12: 90 | G12: 100 | H12: 22 | O12: 90 | P12: 100 | Q12: 22 | R12: 90 | S12: 100 | T12: 22
A13: Diesel (gallons)
A14: LPG (gallons)
A15: Biomethane (kg)
A16: Bio LNG (kg)
A19: Fuel change impact | B19: Other impact assessment
A20: Diesel | B20: Diesel
A21: CNG | B21: CNG
A22: LPG | B22: LPG
A23: LNG | B23: LNG
A24: Gasoline | B24: Gasoline
A25: Electricity | B25: Biomethane
A26: Biomethane | B26: Bio LNG
A27: Bio LNG

Sheet Road EF (hidden)
A1: Type of fuel | B1: Type of road vehicles | C1: (g CO2e/tkm) (Ambient) | D1: (g CO2e/tkm) (Refrigerated) | E1: uplift values (Asia)
A2: Diesel | B2: Non Motorized rickshaw/cart | C2: 0 | D2: 0 | E2: 0
A3: Diesel | B3: Bicycle/Cargo bike | C3: 0 | D3: 0 | E3: 0
A4: Diesel | B4: Motorized rickshaw / tuk tuk | C4: 0 | D4: 0 | E4: 0
A5: Diesel | B5: Motorcycle (2-wheeler) | C5: 0 | D5: 0 | E5: 0
A6: Diesel | B6: Tempo | C6: 0 | D6: 0 | E6: 13
A7: Diesel | B7: Light good vehicle (<3.5 t) | C7: 680 | D7: 780 | E7: 13
A8: Diesel | B8: Rigid Truck (3.5 t - 7.5 t)) | C8: 370 | D8: 415 | E8: 22
A9: Diesel | B9: Rigid Truck (7.5 t-12t) | C9: 240 | D9: 270 | E9: 22
A10: Diesel | B10: Rigid Truck (12t-20t) | C10: 150 | D10: 170 | E10: 22
A11: Diesel | B11: Rigid Truck (>20t) | C11: 120 | D11: 145 | E11: 22
A12: Diesel | B12: Truck and Trailer (>20t) | C12: 90 | D12: 100 | E12: 22
A13: Gasoline | B13: Non Motorized rickshaw/cart | C13: 0 | D13: 0 | E13: 0
A14: Gasoline | B14: Bicycle/Cargo bike | C14: 0 | D14: 0 | E14: 0
A15: Gasoline | B15: Motorized rickshaw / tuk tuk | C15: 0 | D15: 0 | E15: 0
A16: Gasoline | B16: Motorcycle (2-wheeler) | C16: 0 | D16: 0 | E16: 0
A17: Gasoline | B17: Tempo | C17: 0 | D17: 0 | E17: 0
A18: Gasoline | B18: Light good vehicle (<3.5 t) | C18: 1000 | D18: 1150 | E18: 13
A19: Gasoline | B19: Rigid Truck (3.5 t - 7.5 t)) | C19: 0 | D19: 0 | E19: 0
A20: Gasoline | B20: Rigid Truck (7.5 t-12t) | C20: 0 | D20: 0 | E20: 0
A21: Gasoline | B21: Rigid Truck (12t-20t) | C21: 0 | D21: 0 | E21: 0
A22: Gasoline | B22: Rigid Truck (>20t) | C22: 0 | D22: 0 | E22: 0
A23: Gasoline | B23: Truck and Trailer (>20t) | C23: 0 | D23: 0 | E23: 0
A24: LPG | B24: Non Motorized rickshaw/cart | C24: 0 | D24: 0 | E24: 0
A25: LPG | B25: Bicycle/Cargo bike | C25: 0 | D25: 0 | E25: 0
A26: LPG | B26: Motorized rickshaw / tuk tuk | C26: 0 | D26: 0 | E26: 0
A27: LPG | B27: Motorcycle (2-wheeler) | C27: 0 | D27: 0 | E27: 0
A28: LPG | B28: Tempo | C28: 0 | D28: 0 | E28: 0
A29: LPG | B29: Light good vehicle (<3.5 t) | C29: 660 | D29: 760 | E29: 13
A30: LPG | B30: Rigid Truck (3.5 t - 7.5 t)) | C30: 0 | D30: 0 | E30: 0
A31: LPG | B31: Rigid Truck (7.5 t-12t) | C31: 0 | D31: 0 | E31: 0
A32: LPG | B32: Rigid Truck (12t-20t) | C32: 0 | D32: 0 | E32: 0
A33: LPG | B33: Rigid Truck (>20t) | C33: 0 | D33: 0 | E33: 0
A34: LPG | B34: Truck and Trailer (>20t) | C34: 0 | D34: 0 | E34: 0
A35: CNG | B35: Non Motorized rickshaw/cart | C35: 0 | D35: 0 | E35: 0
A36: CNG | B36: Bicycle/Cargo bike | C36: 0 | D36: 0 | E36: 0
A37: CNG | B37: Motorized rickshaw / tuk tuk | C37: 0 | D37: 0 | E37: 0
A38: CNG | B38: Motorcycle (2-wheeler) | C38: 0 | D38: 0 | E38: 0
A39: CNG | B39: Tempo | C39: 0 | D39: 0 | E39: 0
A40: CNG | B40: Light good vehicle (<3.5 t) | C40: 620 | D40: 710 | E40: 13
A41: CNG | B41: Rigid Truck (3.5 t - 7.5 t)) | C41: 360 | D41: 405 | E41: 22
A42: CNG | B42: Rigid Truck (7.5 t-12t) | C42: 220 | D42: 250 | E42: 22
A43: CNG | B43: Rigid Truck (12t-20t) | C43: 150 | D43: 170 | E43: 22
A44: CNG | B44: Rigid Truck (>20t) | C44: 120 | D44: 145 | E44: 22
A45: CNG | B45: Truck and Trailer (>20t) | C45: 90 | D45: 100 | E45: 22
A46: LNG | B46: Non Motorized rickshaw/cart | C46: 0 | D46: 0 | E46: 0
A47: LNG | B47: Bicycle/Cargo bike | C47: 0 | D47: 0 | E47: 0
A48: LNG | B48: Motorized rickshaw / tuk tuk | C48: 0 | D48: 0 | E48: 0
A49: LNG | B49: Motorcycle (2-wheeler) | C49: 0 | D49: 0 | E49: 0
A50: LNG | B50: Tempo | C50: 0 | D50: 0 | E50: 0
A51: LNG | B51: Light good vehicle (<3.5 t) | C51: 0 | D51: 0 | E51: 0
A52: LNG | B52: Rigid Truck (3.5 t - 7.5 t)) | C52: 0 | D52: 0 | E52: 0
A53: LNG | B53: Rigid Truck (7.5 t-12t) | C53: 0 | D53: 0 | E53: 0
A54: LNG | B54: Rigid Truck (12t-20t) | C54: 180 | D54: 200 | E54: 22
A55: LNG | B55: Rigid Truck (>20t) | C55: 140 | D55: 170 | E55: 22
A56: LNG | B56: Truck and Trailer (>20t) | C56: 90 | D56: 100 | E56: 22
A57: Electricity | B57: Non Motorized rickshaw/cart | C57: 0 | D57: 0 | E57: 0
A58: Electricity | B58: Bicycle/Cargo bike | C58: 0 | D58: 0 | E58: 0
A59: Electricity | B59: Motorized rickshaw / tuk tuk | C59: 0 | D59: 0 | E59: 0
A60: Electricity | B60: Motorcycle (2-wheeler) | C60: 0 | D60: 0 | E60: 0
A61: Electricity | B61: Tempo | C61: 0 | D61: 0 | E61: 0
A62: Electricity | B62: Light good vehicle (<3.5 t) | C62: 1.1 | D62: 0 | E62: 0
A63: Electricity | B63: Rigid Truck (3.5 t - 7.5 t)) | C63: 0.5 | D63: 0 | E63: 0
A64: Electricity | B64: Rigid Truck (7.5 t-12t) | C64: 0.4 | D64: 0 | E64: 0
A65: Electricity | B65: Rigid Truck (12t-20t) | C65: 0 | D65: 0 | E65: 0
A66: Electricity | B66: Rigid Truck (>20t) | C66: 0 | D66: 0 | E66: 0
A67: Electricity | B67: Truck and Trailer (>20t) | C67: 0 | D67: 0 | E67: 0

Sheet Water Graphs data (hidden)
A1: Measurement | B1: ='City Profile'!F18 -> 2019 | C1: ='City Profile'!H18 -> 2020 | D1: ='City Profile'!J18 -> 2021 | E1: ='City Profile'!L18 -> 2022
A2: CO2e (million tonnes) | B2: 0 | C2: 0 | D2: 0 | E2: 0 | T2: 8
A3: Million tonne-km | B3: 0 | C3: 0 | D3: 0 | E3: 0
A7: Motor Vessels < 80 m [1000T] | B7: 0
A8: Motor Vessels 85-110 m [1000 - 2000T] | B8: 0
A9: Motos Vessels 135 m [2000 - 3000T] | B9: 0
A10: Coupled convoys [163 -185 m ] | B10: 0
A11: Pushed convoy - push boat + 2 barges | B11: 0
A12: Pushed convoy - push boat + 4/5 barges | B12: 0
A13: Pushed convoy - push boat + 6 barges | B13: 0
A14: Tanker vessels | B14: 0
A15: Container vessels 110m | B15: 0
A16: Container vessels 135 | B16: 0
A17: Container vessels - Coupled convoys | B17: 0
A20: Diesel | B20: 0
A21: Others | B21: 0
